fUST/lending_fUST_20250227
["ID","MTS","AMOUNT","RATE_DAILY","PERIOD"]
[354600957,1740595842152,-1121.27,0.00052054,120]
[354600959,1740595842162,-500.0,0.00052054,120]
[354600961,1740595842173,-500.0,0.00052054,120]
[354600963,1740595842183,-500.0,0.00052054,30]
[354600965,1740595842194,-1101.44,0.00052054,120]
[354600967,1740595842204,-500.0,0.00052054,45]
[354600969,1740595842214,-500.0,0.00052054,120]
[354600971,1740595842224,-1764.14,0.00052054,120]
[354600973,1740595842233,-500.0,0.00052054,120]
[354600975,1740595842242,-588.25,0.00052054,120]
[354600977,1740595842252,-2377.1,0.00052054,120]
[354600979,1740595842262,-852.55,0.00052054,120]
[354600981,1740595842271,-500.0,0.00052054,120]
[354600983,1740595842281,-1100.79,0.00052054,120]
[354600985,1740595842290,-500.0,0.00052054,120]
[354600987,1740595842299,-500.0,0.00052054,120]
[354600989,1740595842312,-1552.98,0.00052054,120]
[354600991,1740595842321,-500.0,0.00052054,120]
[354600993,1740595842330,-500.0,0.00052054,120]
[354600995,1740595842340,-500.0,0.00052054,120]
[354600997,1740595842350,-543.36,0.00052054,120]
[354600999,1740595842361,-797.98,0.00052054,120]
[354601001,1740595842371,-500.0,0.00052054,120]
[354601003,1740595842380,-500.0,0.00052054,120]
[354601005,1740595842390,-500.0,0.00052054,120]
[354601007,1740595842399,-951.27,0.00052054,120]
[354601009,1740595842408,-500.0,0.00052054,120]
[354601011,1740595842417,-888.97,0.00052054,120]
[354601013,1740595842427,-500.0,0.00052054,120]
[354601015,1740595842436,-612.57,0.00052054,120]
[354601017,1740595842448,-2699.87,0.00052054,120]
[354601019,1740595842457,-500.0,0.00052054,120]
[354601021,1740595842467,-500.0,0.00052054,120]
[354601023,1740595842476,-500.0,0.00052054,120]
[354601025,1740595842485,-500.0,0.00052054,120]
[354601027,1740595842495,-1580.11,0.00052054,120]
[354601029,1740595842505,-500.0,0.00052054,120]
[354601031,1740595842514,-500.0,0.00052054,120]
[354601033,1740595842523,-500.0,0.00052054,120]
[354601035,1740595842533,-500.0,0.00052054,120]
[354601037,1740595842542,-500.0,0.00052054,120]
[354601039,1740595842553,-1704.51,0.00052054,120]
[354601041,1740595842565,-500.0,0.00052054,120]
[354601043,1740595842575,-418.66492704,0.00052054,120]
[354601045,1740595842584,-500.0,0.00052054,120]
[354601047,1740595842594,-500.0,0.00052054,120]
[354601049,1740595842604,-500.0,0.00052054,120]
[354601051,1740595842614,-20000.0,0.00052054,120]
[354601053,1740595842624,-788.27,0.00052054,120]
[354601055,1740595842634,-1099.83,0.00052054,120]
[354601057,1740595842645,-500.0,0.00052054,120]
[354601059,1740595842656,-500.0,0.00052054,120]
[354601061,1740595842665,-500.0,0.00052054,120]
[354601063,1740595842675,-1902.4,0.00052054,120]
[354601065,1740595842686,-500.0,0.00052054,120]
[354601068,1740595842695,-500.0,0.00052054,120]
[354601069,1740595842705,-500.0,0.00052054,120]
[354601072,1740595842715,-500.0,0.00052054,120]
[354601074,1740595842725,-500.0,0.00052054,120]
[354601075,1740595842734,-500.0,0.00052054,120]
[354601077,1740595842744,-500.0,0.00052054,120]
[354601079,1740595842754,-500.0,0.00052054,120]
[354601081,1740595842763,-500.0,0.00052054,120]
[354601083,1740595842772,-500.0,0.00052054,120]
[354601086,1740595842782,-500.0,0.00052054,120]
[354601088,1740595842791,-500.0,0.00052054,120]
[354601093,1740595842802,-500.0,0.00052054,120]
[354601096,1740595842814,-500.0,0.00052054,120]
[354601100,1740595842824,-500.0,0.00052054,120]
[354601102,1740595842833,-500.0,0.00052054,120]
[354601104,1740595842844,-500.0,0.00052054,120]
[354601107,1740595842853,-500.0,0.00052054,120]
[354601111,1740595842863,-500.0,0.00052054,120]
[354601115,1740595842872,-500.0,0.00052054,120]
[354601119,1740595842882,-500.0,0.00052054,120]
[354601123,1740595842892,-500.0,0.00052054,120]
[354601126,1740595842901,-1372.49,0.00052054,120]
[354601131,1740595842911,-500.0,0.00052054,120]
[354601135,1740595842921,-500.0,0.00052054,120]
[354601139,1740595842934,-500.0,0.00052054,2]
[354601143,1740595842944,-500.0,0.00052054,120]
[354601149,1740595842954,-500.0,0.00052054,120]
[354601153,1740595842964,-500.0,0.00052054,120]
[354601158,1740595842976,-500.0,0.00052054,120]
[354601166,1740595842987,-500.0,0.00052054,120]
[354601172,1740595842997,-500.0,0.00052054,120]
[354601178,1740595843008,-500.0,0.00052054,120]
[354601184,1740595843018,-500.0,0.00052054,120]
[354601190,1740595843028,-2314.27,0.00052054,120]
[354601196,1740595843039,-438.81142038,0.00052054,120]
[354601203,1740595843048,-901.59,0.00052054,120]
[354601209,1740595843060,-822.39,0.00052054,120]
[354601213,1740595843070,-500.0,0.00052054,120]
[354601218,1740595843081,-1486.63,0.00052054,120]
[354601222,1740595843091,-500.0,0.00052054,120]
[354601226,1740595843101,-500.0,0.00052054,120]
[354601230,1740595843111,-500.0,0.00052054,120]
[354601234,1740595843122,-500.0,0.00052054,120]
[354601238,1740595843133,-500.0,0.00052054,120]
[354601242,1740595843142,-163.90644286,0.00052054,120]
[354601247,1740595843153,-500.0,0.00052054,120]
[354601251,1740595843162,-500.0,0.00052054,120]
[354601255,1740595843173,-500.0,0.00052054,120]
[354601260,1740595843182,-1677.06,0.00052054,120]
[354601264,1740595843192,-500.0,0.00052054,120]
[354601268,1740595843202,-500.0,0.00052054,120]
[354601272,1740595843211,-1205.34,0.00052054,120]
[354601276,1740595843220,-500.0,0.00052054,120]
[354601279,1740595843230,-500.0,0.00052054,120]
[354601282,1740595843239,-2294.05,0.00052054,120]
[354601286,1740595843248,-500.0,0.00052054,120]
[354601290,1740595843258,-500.0,0.00052054,120]
[354601293,1740595843267,-500.0,0.00052054,120]
[354601295,1740595843277,-580.7274982,0.00052054,120]
[354601299,1740595843287,-350.57794522,0.00052054,120]
[354601301,1740595843296,-500.0,0.00052054,120]
[354601303,1740595843305,-500.0,0.00052054,120]
[354601304,1740595843317,-1120.61,0.00052054,120]
[354601306,1740595843326,-500.0,0.00052054,120]
[354601308,1740595843335,-604.64,0.00052054,120]
[354601310,1740595843345,-500.0,0.00052054,120]
[354601312,1740595843354,-500.0,0.00052054,120]
[354601314,1740595843363,-312.4271708,0.00052054,120]
[354601316,1740595843373,-500.0,0.00052054,120]
[354601318,1740595843383,-500.0,0.00052054,120]
[354601321,1740595843392,-1074.36,0.00052054,120]
[354601323,1740595843401,-500.0,0.00052054,120]
[354601325,1740595843411,-500.0,0.00052054,120]
[354601326,1740595843420,-527.7,0.00052054,120]
[354601328,1740595843430,-500.0,0.00052054,120]
[354601331,1740595843440,-500.0,0.00052054,120]
[354601333,1740595843449,-500.0,0.00052054,120]
[354601335,1740595843459,-806.28,0.00052054,120]
[354601337,1740595843468,-500.0,0.00052054,120]
[354601339,1740595843478,-500.0,0.00052054,120]
[354601341,1740595843488,-500.0,0.00052054,120]
[354601343,1740595843497,-500.0,0.00052054,120]
[354601345,1740595843507,-1834.97,0.00052054,120]
[354601347,1740595843516,-500.0,0.00052054,120]
[354601349,1740595843525,-500.0,0.00052054,120]
[354601351,1740595843535,-500.0,0.00052054,120]
[354601353,1740595843544,-500.0,0.00052054,120]
[354601355,1740595843553,-500.0,0.00052054,120]
[354601357,1740595843565,-500.0,0.00052054,120]
[354601360,1740595843575,-841.31,0.00052054,120]
[354601363,1740595843585,-500.0,0.00052054,120]
[354601365,1740595843594,-500.0,0.00052054,120]
[354601367,1740595843603,-1149.59,0.00052054,120]
[354601369,1740595843612,-515.08897581,0.00052054,120]
[354601371,1740595843623,-500.0,0.00052054,120]
[354601374,1740595843633,-500.0,0.00052054,120]
[354601376,1740595843642,-500.0,0.00052054,120]
[354601378,1740595843652,-500.0,0.00052054,120]
[354601380,1740595843661,-613.44,0.00052054,120]
[354601382,1740595843670,-500.0,0.00052054,120]
[354601384,1740595843680,-500.0,0.00052054,120]
[354601386,1740595843689,-500.0,0.00052054,120]
[354601388,1740595843699,-504.48,0.00052054,120]
[354601390,1740595843708,-584.62480807,0.00052054,120]
[354601392,1740595843718,-500.0,0.00052054,120]
[354601394,1740595843727,-500.0,0.00052054,120]
[354601396,1740595843737,-500.0,0.00052054,120]
[354601398,1740595843746,-500.0,0.00052054,120]
[354601400,1740595843756,-610.98,0.00052054,120]
[354601402,1740595843766,-500.0,0.00052054,120]
[354601404,1740595843775,-17012.28,0.00052054,3]
[354601406,1740595843784,-500.0,0.00052054,120]
[354601408,1740595843795,-328.72600949,0.00052054,120]
[354601410,1740595843805,-919.11,0.00052054,120]
[354601412,1740595843816,-500.0,0.00052054,120]
[354601414,1740595843825,-500.0,0.00052054,120]
[354601416,1740595843834,-500.0,0.00052054,120]
[354601418,1740595843844,-1139.22,0.00052054,120]
[354601420,1740595843853,-1427.81,0.00052054,120]
[354601422,1740595843862,-500.0,0.00052054,120]
[354601424,1740595843872,-3966.28,0.00052054,120]
[354601427,1740595843881,-500.0,0.00052054,120]
[354601429,1740595843891,-500.0,0.00052054,120]
[354601430,1740595843899,-500.0,0.00052054,120]
[354601433,1740595843910,-500.0,0.00052054,21]
[354601435,1740595843920,-1179.25,0.00052054,120]
[354601437,1740595843932,-500.0,0.00052054,120]
[354601439,1740595843942,-500.0,0.00052054,120]
[354601441,1740595843952,-500.0,0.00052054,120]
[354601443,1740595843961,-643.49,0.00052054,120]
[354601445,1740595843971,-500.0,0.00052054,30]
[354601446,1740595843981,-9738.58,0.00052054,120]
[354601449,1740595843990,-500.0,0.00052054,120]
[354601451,1740595844000,-500.0,0.00052054,120]
[354601452,1740595844009,-801.82,0.00052054,120]
[354601455,1740595844021,-500.0,0.00052054,120]
[354601457,1740595844030,-911.86,0.00052054,120]
[354601459,1740595844040,-500.0,0.00052054,120]
[354601461,1740595844049,-552.77,0.00052054,120]
[354601463,1740595844059,-500.0,0.00052054,120]
[354601464,1740595844069,-11052.45,0.00052054,120]
[354601465,1740595844077,-500.0,0.00052054,120]
[354601466,1740595844087,-254.95235895,0.00052054,120]
[354601467,1740595844096,-500.05,0.00052054,120]
[354601468,1740595844105,-500.0,0.00052054,120]
[354601469,1740595844116,-587.37,0.00052054,120]
[354601470,1740595844125,-500.0,0.00052054,120]
[354601471,1740595844135,-1570.34,0.00052054,120]
[354601473,1740595844144,-517.75,0.00052054,120]
[354601475,1740595844154,-3684.76,0.00052054,120]
[354601477,1740595844163,-502.77624857,0.00052054,120]
[354601479,1740595844173,-500.0,0.00052054,120]
[354601481,1740595844182,-3499.84,0.00052054,120]
[354601483,1740595844192,-1015.05,0.00052054,120]
[354601491,1740595844254,-500.0,0.00052054,120]
[354601493,1740595844264,-500.0,0.00052054,120]
[354601495,1740595844274,-13581.8,0.00052054,120]
[354601497,1740595844284,-15292.47,0.00052054,120]
[354601499,1740595844294,-500.0,0.00052054,120]
[354601501,1740595844304,-500.0,0.00052054,120]
[354601503,1740595844316,-500.0,0.00052054,120]
[354601505,1740595844325,-500.0,0.00052054,120]
[354601507,1740595844335,-500.0,0.00052054,120]
[354601509,1740595844344,-500.0,0.00052054,120]
[354601511,1740595844353,-500.0,0.00052054,120]
[354601513,1740595844362,-500.0,0.00052054,120]
[354601515,1740595844371,-500.0,0.00052054,120]
[354601517,1740595844380,-1020.31,0.00052054,120]
[354601519,1740595844390,-690.39,0.00052054,120]
[354601521,1740595844399,-3105.4,0.00052054,120]
[354601523,1740595844408,-834.44,0.00052054,30]
[354601525,1740595844417,-2309.16,0.00052054,120]
[354601527,1740595844427,-10799.99,0.00052054,120]
[354601529,1740595844437,-500.0,0.00052054,120]
[354601531,1740595844446,-541.85251682,0.00052054,120]
[354601533,1740595844456,-500.0,0.00052054,120]
[354601535,1740595844465,-850.01,0.00052054,120]
[354601537,1740595844474,-500.0,0.00052054,120]
[354601539,1740595844483,-500.0,0.00052054,120]
[354601541,1740595844493,-4233.08,0.00052054,120]
[354601543,1740595844502,-4180.32,0.00052054,120]
[354601545,1740595844512,-500.0,0.00052054,120]
[354601547,1740595844520,-500.0,0.00052054,120]
[354601549,1740595844530,-500.0,0.00052054,120]
[354601551,1740595844539,-500.0,0.00052054,120]
[354601553,1740595844549,-500.0,0.00052054,120]
[354601555,1740595844560,-2800.4,0.00052054,120]
[354601557,1740595844570,-2084.49,0.00052054,120]
[354601559,1740595844579,-583.3,0.00052054,120]
[354601561,1740595844588,-2951.73,0.00052054,120]
[354601563,1740595844598,-500.0,0.00052054,120]
[354601565,1740595844607,-500.0,0.00052054,120]
[354601567,1740595844616,-500.0,0.00052054,120]
[354601569,1740595844625,-500.0,0.00052054,120]
[354601571,1740595844635,-500.0,0.00052054,120]
[354601573,1740595844644,-500.0,0.00052054,120]
[354601575,1740595844654,-2431.59,0.00052054,120]
[354601578,1740595844663,-500.0,0.00052054,120]
[354601580,1740595844673,-500.0,0.00052054,120]
[354601582,1740595844682,-500.0,0.00052054,120]
[354601584,1740595844692,-1000.0,0.00052054,120]
[354601586,1740595844701,-500.0,0.00052054,120]
[354601588,1740595844711,-500.0,0.00052054,120]
[354601590,1740595844720,-500.0,0.00052054,120]
[354601592,1740595844730,-445.54451461,0.00052054,120]
[354601594,1740595844739,-1918.79,0.00052054,120]
[354601596,1740595844749,-500.0,0.00052054,120]
[354601598,1740595844760,-1679.17,0.00052054,120]
[354601600,1740595844770,-500.0,0.00052054,120]
[354601602,1740595844780,-500.0,0.00052054,120]
[354601604,1740595844790,-500.0,0.00052054,120]
[354601606,1740595844802,-514.65,0.00052054,120]
[354601608,1740595844813,-2627.04,0.00052054,120]
[354601610,1740595844823,-500.0,0.00052054,120]
[354601612,1740595844833,-500.0,0.00052054,120]
[354601614,1740595844844,-1409.36,0.00052054,120]
[354601616,1740595844853,-500.0,0.00052054,120]
[354601618,1740595844864,-785.21,0.00052054,120]
[354601620,1740595844874,-500.0,0.00052054,120]
[354601622,1740595844886,-834.81,0.00052054,120]
[354601624,1740595844895,-500.0,0.00052054,120]
[354601626,1740595844905,-1000.0,0.00052054,120]
[354601628,1740595844915,-500.0,0.00052054,120]
[354601630,1740595844924,-3016.52,0.00052054,120]
[354601632,1740595844936,-500.0,0.00052054,120]
[354601634,1740595844947,-500.0,0.00052054,120]
[354601636,1740595844959,-684.79,0.00052054,120]
[354601638,1740595844969,-500.0,0.00052054,120]
[354601640,1740595844982,-2867.38,0.00052054,120]
[354601642,1740595844992,-500.0,0.00052054,120]
[354601645,1740595845002,-500.0,0.00052054,120]
[354601646,1740595845012,-928.1,0.00052054,120]
[354601648,1740595845022,-555.85204641,0.00052054,120]
[354601650,1740595845033,-511.43,0.00052054,120]
[354601652,1740595845043,-500.0,0.00052054,120]
[354601655,1740595845053,-500.0,0.00052054,120]
[354601657,1740595845064,-163172.77,0.00052054,7]
[354601659,1740595845074,-567.25,0.00052054,120]
[354601660,1740595845083,-4605.54,0.00052054,120]
[354601663,1740595845093,-884.36,0.00052054,120]
[354601665,1740595845104,-418.3307912,0.00052054,120]
[354601667,1740595845113,-1000.0,0.00052054,120]
[354601669,1740595845123,-259.55441264,0.00052054,120]
[354601671,1740595845133,-606.22781097,0.00052054,120]
[354601673,1740595845143,-500.0,0.00052054,120]
[354601675,1740595845153,-573.56,0.00052054,120]
[354601677,1740595845162,-500.0,0.00052054,120]
[354601679,1740595845172,-500.0,0.00052054,120]
[354601681,1740595845183,-500.0,0.00052054,120]
[354601683,1740595845192,-1964.79,0.00052054,120]
[354601685,1740595845202,-29115.5,0.00052054,120]
[354601687,1740595845213,-500.0,0.00052054,30]
[354601689,1740595845223,-644.01,0.00052054,120]
[354601691,1740595845232,-505.9955988,0.00052054,120]
[354601693,1740595845243,-1853.52,0.00052054,120]
[354601695,1740595845253,-500.0,0.00052054,120]
[354601697,1740595845262,-500.0,0.00052054,120]
[354601699,1740595845272,-627.73,0.00052054,120]
[354601701,1740595845282,-1150.38,0.00052054,120]
[354601703,1740595845292,-8691.74,0.00052054,120]
[354601705,1740595845302,-820.33,0.00052054,120]
[354601707,1740595845314,-500.0,0.00052054,120]
[354601709,1740595845323,-500.0,0.00052054,120]
[354601711,1740595845333,-1232.27,0.00052054,120]
[354601713,1740595845343,-1991.01,0.00052054,120]
[354601715,1740595845352,-8198.21,0.00052054,120]
[354601717,1740595845361,-1218.92,0.00052054,120]
[354601719,1740595845371,-500.0,0.00052054,120]
[354601721,1740595845381,-500.0,0.00052054,120]
[354601723,1740595845391,-364.60421084,0.00052054,120]
[354601725,1740595845400,-4372.21,0.00052054,120]
[354601727,1740595845410,-529.8450348,0.00052054,120]
[354601729,1740595845419,-4372.21,0.00052054,120]
[354601731,1740595845428,-4372.21,0.00052054,120]
[354601733,1740595845438,-4372.21,0.00052054,120]
[354601735,1740595845447,-200.0,0.00052054,7]
[354601737,1740595845457,-500.0,0.00052054,120]
[354601739,1740595845466,-4372.21,0.00052054,120]
[354601741,1740595845476,-500.0,0.00052054,120]
[354601743,1740595845485,-4372.21,0.00052054,120]
[354601745,1740595845495,-4372.21,0.00052054,120]
[354601747,1740595845504,-820.98,0.00052054,120]
[354601749,1740595845514,-4372.21,0.00052054,120]
[354601751,1740595845523,-4372.21,0.00052054,120]
[354601753,1740595845532,-4372.21,0.00052054,120]
[354601755,1740595845542,-4372.21,0.00052054,120]
[354601757,1740595845551,-4372.21,0.00052054,120]
[354601759,1740595845562,-555.9,0.00052054,120]
[354601761,1740595845571,-4372.21,0.00052054,120]
[354601763,1740595845580,-500.0,0.00052054,120]
[354601765,1740595845589,-35881.26,0.00052054,120]
[354601767,1740595845599,-4372.21,0.00052054,120]
[354601769,1740595845608,-4372.21,0.00052054,120]
[354601771,1740595845617,-4372.21,0.00052054,120]
[354601773,1740595845627,-4372.21,0.00052054,120]
[354601775,1740595845637,-500.0,0.00052054,120]
[354601777,1740595845648,-4372.21,0.00052054,120]
[354601779,1740595845657,-4372.21,0.00052054,120]
[354601781,1740595845667,-4372.21,0.00052054,120]
[354601783,1740595845676,-500.0,0.00052054,120]
[354601785,1740595845686,-4372.21,0.00052054,120]
[354601787,1740595845695,-4372.21,0.00052054,120]
[354601789,1740595845705,-4372.21,0.00052054,120]
[354601791,1740595845715,-4372.443706,0.00052054,120]
[354601793,1740595845725,-500.0,0.00052054,120]
[354601795,1740595845735,-949.77,0.00052054,120]
[354601797,1740595845744,-1000.0,0.00052054,2]
[354601799,1740595845754,-2923.8,0.00052054,120]
[354601801,1740595845763,-500.0,0.00052054,120]
[354601804,1740595845773,-500.0,0.00052054,120]
[354601806,1740595845782,-500.0,0.00052054,120]
[354601808,1740595845792,-14356.2,0.00052054,120]
[354601810,1740595845801,-689.35,0.00052054,120]
[354601812,1740595845814,-853.36,0.00052054,120]
[354601814,1740595845824,-500.0,0.00052054,120]
[354601816,1740595845834,-4865.11,0.00052054,120]
[354601818,1740595845844,-2475.11,0.00052054,120]
[354601820,1740595845854,-500.0,0.00052054,120]
[354601822,1740595845865,-500.0,0.00052054,120]
[354601825,1740595845875,-2671.56,0.00052054,120]
[354601828,1740595845884,-500.0,0.00052054,120]
[354601831,1740595845894,-5089.13,0.00052054,120]
[354601834,1740595845904,-500.0,0.00052054,120]
[354601837,1740595845914,-514.99,0.00052054,120]
[354601840,1740595845924,-44424.48,0.00052054,6]
[354601843,1740595845943,-500.0,0.00052054,120]
[354601847,1740595845953,-500.93917807,0.00052054,120]
[354601850,1740595845962,-520.61,0.00052054,120]
[354601853,1740595845972,-1173.4,0.00052054,120]
[354601857,1740595845984,-500.0,0.00052054,120]
[354601860,1740595845994,-500.0,0.00052054,120]
[354601863,1740595846004,-1066.43,0.00052054,120]
[354601867,1740595846013,-3489.83,0.00052054,120]
[354601870,1740595846024,-1957.38,0.00052054,120]
[354601873,1740595846034,-500.0,0.00052054,120]
[354601875,1740595846044,-2424.79,0.00052054,120]
[354601878,1740595846054,-21424.0,0.00052054,120]
[354601880,1740595846066,-423.7961233,0.00052054,120]
[354601883,1740595846075,-519.69,0.00052054,120]
[354601885,1740595846085,-526.05,0.00052054,120]
[354601887,1740595846095,-502.01208196,0.00052054,120]
[354601889,1740595846104,-1666.71,0.00052054,120]
[354601891,1740595846114,-3965.85,0.00052054,120]
[354601893,1740595846124,-305.01831373,0.00052054,120]
[354601895,1740595846134,-500.0,0.00052054,120]
[354601897,1740595846144,-788.51,0.00052054,120]
[354601899,1740595846154,-1619.69,0.00052054,120]
[354601902,1740595846164,-501.8020352,0.00052054,120]
[354601904,1740595846174,-1722.02,0.00052054,120]
[354601906,1740595846184,-589.75371842,0.00052054,120]
[354601908,1740595846194,-500.0,0.00052054,120]
[354601910,1740595846204,-500.0,0.00052054,120]
[354601912,1740595846214,-4778.1,0.00052054,120]
[354601914,1740595846223,-500.0,0.00052054,120]
[354601916,1740595846233,-500.0,0.00052054,120]
[354601918,1740595846243,-2593.09,0.00052054,120]
[354601920,1740595846253,-1690.26,0.00052054,120]
[354601922,1740595846263,-500.0,0.00052054,120]
[354601924,1740595846272,-812.11,0.00052054,120]
[354601926,1740595846282,-500.0,0.00052054,120]
[354601928,1740595846291,-710.16,0.00052054,120]
[354601930,1740595846301,-1536.25,0.00052054,120]
[354601932,1740595846311,-500.0,0.00052054,120]
[354601934,1740595846321,-626.19,0.00052054,120]
[354601936,1740595846331,-247.13201406,0.00052054,120]
[354601938,1740595846340,-541.13,0.00052054,120]
[354601940,1740595846350,-512.95,0.00052054,120]
[354601942,1740595846359,-1851.36,0.00052054,120]
[354601944,1740595846368,-500.0,0.00052054,120]
[354601946,1740595846378,-504.1030797,0.00052054,120]
[354601949,1740595846387,-662.82,0.00052054,120]
[354601951,1740595846397,-810.19,0.00052054,120]
[354601953,1740595846407,-10264.39,0.00052054,120]
[354601955,1740595846416,-500.0,0.00052054,120]
[354601957,1740595846426,-503.41771493,0.00052054,120]
[354601959,1740595846436,-991.77,0.00052054,120]
[354601961,1740595846447,-3331.35,0.00052054,120]
[354601963,1740595846456,-500.0,0.00052054,120]
[354601965,1740595846466,-500.0,0.00052054,120]
[354601967,1740595846476,-500.0,0.00052054,120]
[354601969,1740595846485,-500.0,0.00052054,120]
[354601971,1740595846496,-500.0,0.00052054,120]
[354601973,1740595846505,-500.0,0.00052054,120]
[354601975,1740595846515,-500.0,0.00052054,120]
[354601977,1740595846525,-500.0,0.00052054,120]
[354601980,1740595846536,-500.0,0.00052054,120]
[354601982,1740595846547,-500.0,0.00052054,120]
[354601984,1740595846557,-5881.5,0.00052054,120]
[354601986,1740595846567,-500.0,0.00052054,120]
[354601988,1740595846577,-1213.93,0.00052054,120]
[354601990,1740595846586,-500.0,0.00052054,120]
[354601992,1740595846596,-453.0504353,0.00052054,120]
[354601994,1740595846605,-500.0,0.00052054,120]
[354601996,1740595846616,-500.0,0.00052054,120]
[354601998,1740595846626,-500.0,0.00052054,120]
[354602000,1740595846635,-500.0,0.00052054,120]
[354602002,1740595846644,-500.0,0.00052054,120]
[354602004,1740595846654,-2374.13,0.00052054,120]
[354602006,1740595846663,-406.64710358,0.00052054,120]
[354602008,1740595846673,-501.8398331,0.00052054,120]
[354602010,1740595846682,-494.21194493,0.00052054,120]
[354602012,1740595846692,-2465.59,0.00052054,120]
[354602014,1740595846702,-1294.2,0.00052054,120]
[354602016,1740595846712,-500.0,0.00052054,120]
[354602018,1740595846722,-500.0,0.00052054,120]
[354602020,1740595846732,-782.08,0.00052054,120]
[354602022,1740595846742,-500.0,0.00052054,120]
[354602025,1740595846752,-7797.57,0.00052054,120]
[354602027,1740595846761,-500.0,0.00052054,120]
[354602029,1740595846771,-500.0,0.00052073,10]
[354602031,1740595846780,-501.13031386,0.00052073,10]
[354602033,1740595846790,-500.0,0.00052073,7]
[354602035,1740595846799,-500.0,0.00052073,10]
[354602037,1740595846809,-500.0,0.00052073,7]
[354602039,1740595846819,-500.0,0.00052073,10]
[354602041,1740595846829,-567.34905296,0.00052073,7]
[354602043,1740595846839,-649.90987727,0.00052073,10]
[354602045,1740595846849,-500.0,0.00052073,10]
[354602048,1740595846859,-624.785987,0.00052073,10]
[354602050,1740595846869,-500.0,0.00052073,10]
[354602052,1740595846878,-500.0,0.00052073,10]
[354602054,1740595846888,-500.0,0.00052073,10]
[354602056,1740595846898,-203.066117,0.00052073,10]
[354602058,1740595846907,-500.0,0.00052073,10]
[354602060,1740595846917,-270.26566065,0.00052073,10]
[354602062,1740595846927,-500.0,0.00052073,10]
[354602064,1740595846937,-500.0,0.00052073,10]
[354602066,1740595846948,-500.0,0.00052073,10]
[354602068,1740595846959,-170.0810519,0.00052073,10]
[354602070,1740595846969,-151.0,0.000521,25]
[354602072,1740595846979,-151.0,0.000521,24]
[354602074,1740595846991,-151.0,0.000522,26]
[354602077,1740595847000,-151.0,0.000522,24]
[354602079,1740595847010,-160.0,0.00052327,60]
[354602081,1740595847019,-10000.0,0.00052328,52]
[354602083,1740595847031,-151.0,0.00052328,120]
[354602085,1740595847041,-151.0,0.00052328,120]
[354602087,1740595847050,-151.0,0.00052328,120]
[354602089,1740595847060,-151.0,0.00052328,120]
[354602091,1740595847071,-151.0,0.00052328,120]
[354602093,1740595847080,-151.0,0.00052328,120]
[354602095,1740595847091,-151.0,0.00052328,30]
[354602097,1740595847101,-151.0,0.00052328,120]
[354602099,1740595847111,-151.0,0.00052328,120]
[354602102,1740595847121,-151.0,0.00052328,120]